[Event "Titled Tuesday Blitz February 28 Late 2023"]
[White "Gubajdullin, Alexei"]
[Black "Bortnyk, Mykola"]
[WhiteFideId "4141202"]
[BlackFideId "14120836"]
[WhiteElo "2285"]
[BlackElo "2582"]
[Result "0-1"]
[Round "04"]
[TimeControl "180+2"]
[Date "2023.02.28"]
[WhiteClock "0:00:28"]
[BlackClock "0:01:14"]

1. d4 {[%clk 0:03:00]}  g6 {[%clk 0:02:56]} 2. Nf3 {[%clk 0:03:00]}  Bg7 {[%clk 0:02:56]} 3. Bf4 {[%clk 0:03:00]}  c5 {[%clk 0:02:56]} 4. e3 {[%clk 0:02:59]}  Qb6 {[%clk 0:02:55]} 5. Nc3 {[%clk 0:02:58]}  cxd4 {[%clk 0:02:50]} 6. exd4 {[%clk 0:02:57]}  Qxb2 {[%clk 0:02:43]} 7. Nd5 {[%clk 0:02:55]}  Kf8 {[%clk 0:02:16]} 8. Rb1 {[%clk 0:02:46]}  Qxa2 {[%clk 0:02:13]} 9. Ra1 {[%clk 0:02:21]}  Qxd5 {[%clk 0:02:13]} 10. Be2 {[%clk 0:02:13]}  Nc6 {[%clk 0:02:08]} 11. c3 {[%clk 0:02:13]}  Nf6 {[%clk 0:02:03]} 12. O-O {[%clk 0:02:12]}  Ne4 {[%clk 0:02:04]} 13. c4 {[%clk 0:02:09]}  Qf5 {[%clk 0:02:03]} 14. Be3 {[%clk 0:02:08]}  Nc3 {[%clk 0:02:03]} 15. Qd2 {[%clk 0:02:07]}  Nxe2+ {[%clk 0:02:03]} 16. Qxe2 {[%clk 0:02:07]}  d5 {[%clk 0:02:03]} 17. Rad1 {[%clk 0:02:02]}  Be6 {[%clk 0:02:02]} 18. c5 {[%clk 0:02:02]}  h6 {[%clk 0:01:59]} 19. Qb5 {[%clk 0:02:00]}  Rb8 {[%clk 0:01:58]} 20. Rb1 {[%clk 0:01:59]}  Bf6 {[%clk 0:01:50]} 21. Qxc6 {[%clk 0:01:46]}  bxc6 {[%clk 0:01:50]} 22. Rxb8+ {[%clk 0:01:45]}  Kg7 {[%clk 0:01:50]} 23. Rxh8 {[%clk 0:01:28]}  Kxh8 {[%clk 0:01:51]} 24. Bxh6 {[%clk 0:01:20]}  g5 {[%clk 0:01:50]} 25. h4 {[%clk 0:01:18]}  g4 {[%clk 0:01:39]} 26. Ne5 {[%clk 0:01:18]}  Bxe5 {[%clk 0:01:39]} 27. dxe5 {[%clk 0:01:18]}  Qxe5 {[%clk 0:01:39]} 28. Rb1 {[%clk 0:01:15]}  Kh7 {[%clk 0:01:39]} 29. Bg5 {[%clk 0:01:13]}  f6 {[%clk 0:01:38]} 30. Bd2 {[%clk 0:01:10]}  Qd4 {[%clk 0:01:38]} 31. Be3 {[%clk 0:01:07]}  Qd3 {[%clk 0:01:39]} 32. Rb7 {[%clk 0:01:06]}  Kg6 {[%clk 0:01:35]} 33. Rxe7 {[%clk 0:01:05]}  Bf5 {[%clk 0:01:30]} 34. Rxa7 {[%clk 0:00:58]}  g3 {[%clk 0:01:29]} 35. Ra1 {[%clk 0:00:46]}  d4 {[%clk 0:01:23]} 36. Bf4 {[%clk 0:00:45]}  gxf2+ {[%clk 0:01:22]} 37. Kxf2 {[%clk 0:00:45]}  Qc3 {[%clk 0:01:20]} 38. Ra8 {[%clk 0:00:38]}  d3 {[%clk 0:01:17]} 39. Rd8 {[%clk 0:00:29]}  Qxc5+ {[%clk 0:01:17]} 40. Be3 {[%clk 0:00:28]}  Qc2+ {[%clk 0:01:16]} 41. Kf3 {[%clk 0:00:28]}  Qe2+ {[%clk 0:01:14]} 42. Kf4 {[%clk 0:00:28]}  Qg4# {[%clk 0:01:14]} 0-1


[Site "https://www.chess.com"]

[Event "Titled Tuesday Blitz February 28 Late 2023"]
[White "Saveliev, Alexei"]
[Black "Keymer, Vincent"]
[WhiteFideId "24128546"]
[BlackFideId "12940690"]
[WhiteElo "2271"]
[BlackElo "2651"]
[Result "0-1"]
[Round "04"]
[TimeControl "180+2"]
[Date "2023.02.28"]
[WhiteClock "0:01:50"]
[BlackClock "0:01:28"]

1. c4 {[%clk 0:03:00]}  Nf6 {[%clk 0:02:55]} 2. Nc3 {[%clk 0:03:01]}  e5 {[%clk 0:02:48]} 3. Nf3 {[%clk 0:03:01]}  Nc6 {[%clk 0:02:47]} 4. e3 {[%clk 0:03:01]}  Bb4 {[%clk 0:02:46]} 5. Qc2 {[%clk 0:03:02]}  Bxc3 {[%clk 0:02:46]} 6. Qxc3 {[%clk 0:03:03]}  Qe7 {[%clk 0:02:46]} 7. d4 {[%clk 0:03:03]}  e4 {[%clk 0:02:46]} 8. d5 {[%clk 0:02:56]}  exf3 {[%clk 0:02:44]} 9. dxc6 {[%clk 0:02:57]}  fxg2 {[%clk 0:02:44]} 10. cxd7+ {[%clk 0:02:57]}  Bxd7 {[%clk 0:02:42]} 11. Bxg2 {[%clk 0:02:57]}  O-O-O {[%clk 0:02:25]} 12. Bd2 {[%clk 0:02:48]}  Ne4 {[%clk 0:02:24]} 13. Qb4 {[%clk 0:02:42]}  c5 {[%clk 0:02:20]} 14. Qa5 {[%clk 0:02:40]}  Bc6 {[%clk 0:02:17]} 15. Bxe4 {[%clk 0:02:35]}  Qxe4 {[%clk 0:02:12]} 16. O-O-O {[%clk 0:02:35]}  Qxc4+ {[%clk 0:02:11]} 17. Kb1 {[%clk 0:02:35]}  Bxh1 {[%clk 0:02:11]} 18. Qxa7 {[%clk 0:02:24]}  Be4+ {[%clk 0:02:06]} 19. Ka1 {[%clk 0:02:23]}  Rxd2 {[%clk 0:02:06]} 20. Qa8+ {[%clk 0:02:21]}  Kc7 {[%clk 0:02:05]} 21. Qa5+ {[%clk 0:02:22]}  b6 {[%clk 0:01:58]} 22. Qxd2 {[%clk 0:02:21]}  Qe6 {[%clk 0:01:55]} 23. f3 {[%clk 0:02:14]}  Ra8 {[%clk 0:01:55]} 24. a3 {[%clk 0:02:13]}  Bxf3 {[%clk 0:01:53]} 25. Rf1 {[%clk 0:02:10]}  Bc6 {[%clk 0:01:51]} 26. e4 {[%clk 0:02:08]}  f6 {[%clk 0:01:49]} 27. Rd1 {[%clk 0:02:07]}  Kb7 {[%clk 0:01:41]} 28. Qg2 {[%clk 0:02:05]}  g6 {[%clk 0:01:41]} 29. Qg3 {[%clk 0:02:02]}  Re8 {[%clk 0:01:38]} 30. Qc3 {[%clk 0:01:58]}  Qe5 {[%clk 0:01:36]} 31. Qh3 {[%clk 0:01:56]}  Re7 {[%clk 0:01:33]} 32. Rd8 {[%clk 0:01:55]}  Qe6 {[%clk 0:01:30]} 33. Qg3 {[%clk 0:01:50]}  Rc7 {[%clk 0:01:28]} 0-1


[Site "https://www.chess.com"]

[Event "Titled Tuesday Blitz February 28 Late 2023"]
[White "Zhigalko, Sergei"]
[Black "Klose, Eli"]
[WhiteFideId "13502956"]
[BlackFideId "16242955"]
[WhiteElo "2626"]
[BlackElo "2594"]
[Result "1-0"]
[Round "04"]
[TimeControl "180+2"]
[Date "2023.02.28"]
[WhiteClock "0:01:21"]
[BlackClock "0:00:20"]

1. e4 {[%clk 0:03:00]}  e6 {[%clk 0:02:52]} 2. d4 {[%clk 0:03:01]}  d5 {[%clk 0:02:53]} 3. e5 {[%clk 0:03:01]}  c5 {[%clk 0:02:53]} 4. c3 {[%clk 0:03:02]}  Nc6 {[%clk 0:02:52]} 5. Nf3 {[%clk 0:03:03]}  Qb6 {[%clk 0:02:53]} 6. Bd3 {[%clk 0:03:03]}  cxd4 {[%clk 0:02:52]} 7. O-O {[%clk 0:03:03]}  Bd7 {[%clk 0:02:52]} 8. Re1 {[%clk 0:03:03]}  Nh6 {[%clk 0:02:51]} 9. c4 {[%clk 0:02:53]}  dxc4 {[%clk 0:02:45]} 10. Bxc4 {[%clk 0:02:53]}  Be7 {[%clk 0:02:31]} 11. Nbd2 {[%clk 0:02:52]}  Nf5 {[%clk 0:02:20]} 12. a3 {[%clk 0:02:52]}  O-O {[%clk 0:02:11]} 13. Bd3 {[%clk 0:02:51]}  h6 {[%clk 0:02:05]} 14. Nc4 {[%clk 0:02:45]}  Qd8 {[%clk 0:02:00]} 15. Bf4 {[%clk 0:02:42]}  Na5 {[%clk 0:01:51]} 16. Ncd2 {[%clk 0:02:41]}  Rc8 {[%clk 0:01:44]} 17. b4 {[%clk 0:02:24]}  Nc6 {[%clk 0:01:43]} 18. Qe2 {[%clk 0:02:25]}  Nb8 {[%clk 0:01:28]} 19. Ne4 {[%clk 0:02:19]}  Bc6 {[%clk 0:01:25]} 20. Rad1 {[%clk 0:02:18]}  Bd5 {[%clk 0:01:24]} 21. Bb1 {[%clk 0:02:11]}  a6 {[%clk 0:01:21]} 22. Ng3 {[%clk 0:01:56]}  Bxf3 {[%clk 0:00:38]} 23. Qxf3 {[%clk 0:01:55]}  Nh4 {[%clk 0:00:38]} 24. Qxb7 {[%clk 0:01:44]}  a5 {[%clk 0:00:27]} 25. Qe4 {[%clk 0:01:28]}  Ng6 {[%clk 0:00:26]} 26. Rxd4 {[%clk 0:01:28]}  Qb6 {[%clk 0:00:27]} 27. Be3 {[%clk 0:01:29]}  axb4 {[%clk 0:00:25]} 28. axb4 {[%clk 0:01:28]}  Nc6 {[%clk 0:00:23]} 29. Rc4 {[%clk 0:01:21]}  Qb5 {[%clk 0:00:22]} 30. Rec1 {[%clk 0:01:21]}  Ngxe5 {[%clk 0:00:20]} 31. Qh7# {[%clk 0:01:21]} 1-0


[Site "https://www.chess.com"]

[Event "Titled Tuesday Blitz February 28 Late 2023"]
[White "Colas, Joshua"]
[Black "Ibarra Jerez, Jose Carlos"]
[WhiteFideId "2044447"]
[BlackFideId "2226332"]
[WhiteElo "2347"]
[BlackElo "2638"]
[Result "1-0"]
[Round "04"]
[TimeControl "180+2"]
[Date "2023.02.28"]
[WhiteClock "0:00:10"]
[BlackClock "0:00:07"]

1. Nf3 {[%clk 0:02:48]}  Nf6 {[%clk 0:02:59]} 2. c4 {[%clk 0:02:48]}  d6 {[%clk 0:02:58]} 3. d4 {[%clk 0:02:47]}  g6 {[%clk 0:02:58]} 4. b3 {[%clk 0:02:44]}  Bg7 {[%clk 0:02:57]} 5. Bb2 {[%clk 0:02:44]}  O-O {[%clk 0:02:57]} 6. e3 {[%clk 0:02:43]}  a5 {[%clk 0:02:42]} 7. Nc3 {[%clk 0:02:38]}  c6 {[%clk 0:02:32]} 8. Be2 {[%clk 0:02:33]}  Bf5 {[%clk 0:02:23]} 9. O-O {[%clk 0:02:30]}  Ne4 {[%clk 0:02:21]} 10. Nxe4 {[%clk 0:02:30]}  Bxe4 {[%clk 0:02:21]} 11. Ng5 {[%clk 0:02:24]}  Bf5 {[%clk 0:02:21]} 12. e4 {[%clk 0:02:24]}  Bc8 {[%clk 0:02:19]} 13. e5 {[%clk 0:02:25]}  dxe5 {[%clk 0:02:13]} 14. dxe5 {[%clk 0:02:26]}  Nd7 {[%clk 0:02:12]} 15. f4 {[%clk 0:02:08]}  Nc5 {[%clk 0:02:03]} 16. Qxd8 {[%clk 0:01:59]}  Rxd8 {[%clk 0:02:02]} 17. Rfd1 {[%clk 0:02:00]}  Bf5 {[%clk 0:01:58]} 18. Ba3 {[%clk 0:01:53]}  b6 {[%clk 0:01:43]} 19. Bxc5 {[%clk 0:01:47]}  bxc5 {[%clk 0:01:44]} 20. g4 {[%clk 0:01:48]}  Bc2 {[%clk 0:01:41]} 21. Rxd8+ {[%clk 0:01:46]}  Rxd8 {[%clk 0:01:41]} 22. Rc1 {[%clk 0:01:46]}  Rd2 {[%clk 0:01:39]} 23. Kf1 {[%clk 0:01:33]}  Bd3 {[%clk 0:00:59]} 24. Bxd3 {[%clk 0:01:31]}  Rxd3 {[%clk 0:01:00]} 25. Ne4 {[%clk 0:01:24]}  Rf3+ {[%clk 0:00:58]} 26. Ke2 {[%clk 0:01:22]}  Rxf4 {[%clk 0:00:59]} 27. Nxc5 {[%clk 0:01:23]}  Bxe5 {[%clk 0:00:57]} 28. Nd3 {[%clk 0:01:19]}  Rxg4 {[%clk 0:00:51]} 29. Nxe5 {[%clk 0:00:58]}  Re4+ {[%clk 0:00:51]} 30. Kd3 {[%clk 0:00:59]}  Rxe5 {[%clk 0:00:51]} 31. a3 {[%clk 0:01:00]}  Kf8 {[%clk 0:00:50]} 32. Kd4 {[%clk 0:00:55]}  f6 {[%clk 0:00:49]} 33. b4 {[%clk 0:00:55]}  axb4 {[%clk 0:00:49]} 34. axb4 {[%clk 0:00:56]}  Re6 {[%clk 0:00:17]} 35. Kc5 {[%clk 0:00:56]}  f5 {[%clk 0:00:17]} 36. Kb6 {[%clk 0:00:50]}  f4 {[%clk 0:00:16]} 37. Kc7 {[%clk 0:00:48]}  f3 {[%clk 0:00:16]} 38. Rf1 {[%clk 0:00:48]}  Rf6 {[%clk 0:00:16]} 39. b5 {[%clk 0:00:44]}  cxb5 {[%clk 0:00:16]} 40. cxb5 {[%clk 0:00:44]}  e5 {[%clk 0:00:17]} 41. b6 {[%clk 0:00:45]}  e4 {[%clk 0:00:14]} 42. b7 {[%clk 0:00:41]}  Rf7+ {[%clk 0:00:14]} 43. Kc6 {[%clk 0:00:41]}  Rxb7 {[%clk 0:00:15]} 44. Kxb7 {[%clk 0:00:42]}  Ke7 {[%clk 0:00:15]} 45. Re1 {[%clk 0:00:31]}  Kf6 {[%clk 0:00:16]} 46. Rxe4 {[%clk 0:00:31]}  Kf5 {[%clk 0:00:16]} 47. Re7 {[%clk 0:00:31]}  h5 {[%clk 0:00:17]} 48. Kc6 {[%clk 0:00:22]}  g5 {[%clk 0:00:14]} 49. Kd5 {[%clk 0:00:19]}  Kg4 {[%clk 0:00:14]} 50. Ke4 {[%clk 0:00:17]}  Kh3 {[%clk 0:00:13]} 51. Kxf3 {[%clk 0:00:16]}  g4+ {[%clk 0:00:13]} 52. Kf4 {[%clk 0:00:12]}  Kxh2 {[%clk 0:00:12]} 53. Rh7 {[%clk 0:00:12]}  Kg2 {[%clk 0:00:06]} 54. Rxh5 {[%clk 0:00:09]}  g3 {[%clk 0:00:07]} 55. Rg5 {[%clk 0:00:10]}  Kf2 {[%clk 0:00:07]} 56. Rxg3 {[%clk 0:00:10]} 1-0


[Site "https://www.chess.com"]

[Event "Titled Tuesday Blitz February 28 Late 2023"]
[White "Vasquez Schroeder, Rodrigo"]
[Black "Manelyuk, Daniil"]
[WhiteFideId "3400042"]
[BlackFideId "44173920"]
[WhiteElo "2600"]
[BlackElo "2259"]
[Result "1-0"]
[Round "04"]
[TimeControl "180+2"]
[Date "2023.02.28"]
[WhiteClock "0:00:45"]
[BlackClock "0:00:03"]

1. d4 {[%clk 0:02:52]}  Nf6 {[%clk 0:02:59]} 2. Nf3 {[%clk 0:02:52]}  c5 {[%clk 0:02:59]} 3. d5 {[%clk 0:02:50]}  b5 {[%clk 0:02:59]} 4. c4 {[%clk 0:02:49]}  g6 {[%clk 0:02:56]} 5. cxb5 {[%clk 0:02:47]}  a6 {[%clk 0:02:55]} 6. b6 {[%clk 0:02:47]}  Bg7 {[%clk 0:02:44]} 7. Nc3 {[%clk 0:02:47]}  O-O {[%clk 0:02:43]} 8. e4 {[%clk 0:02:46]}  Bb7 {[%clk 0:02:41]} 9. Be2 {[%clk 0:02:41]}  e6 {[%clk 0:02:41]} 10. O-O {[%clk 0:02:39]}  exd5 {[%clk 0:02:36]} 11. e5 {[%clk 0:02:34]}  Ng4 {[%clk 0:02:16]} 12. Nxd5 {[%clk 0:02:34]}  Nc6 {[%clk 0:02:01]} 13. Bg5 {[%clk 0:02:30]}  Qc8 {[%clk 0:01:41]} 14. Nf6+ {[%clk 0:02:28]}  Bxf6 {[%clk 0:01:24]} 15. exf6 {[%clk 0:02:26]}  d5 {[%clk 0:01:24]} 16. h3 {[%clk 0:02:17]}  Nge5 {[%clk 0:01:19]} 17. Nxe5 {[%clk 0:02:13]}  Nxe5 {[%clk 0:01:18]} 18. Qd2 {[%clk 0:02:13]}  d4 {[%clk 0:01:12]} 19. Qf4 {[%clk 0:02:09]}  Re8 {[%clk 0:01:07]} 20. Qh4 {[%clk 0:02:04]}  Qc6 {[%clk 0:01:07]} 21. f3 {[%clk 0:02:00]}  h5 {[%clk 0:01:04]} 22. Bf4 {[%clk 0:01:57]}  d3 {[%clk 0:01:00]} 23. Bd1 {[%clk 0:01:50]}  c4 {[%clk 0:00:53]} 24. Qg5 {[%clk 0:01:47]}  Nd7 {[%clk 0:00:48]} 25. Be3 {[%clk 0:01:35]}  Re5 {[%clk 0:00:40]} 26. Qh6 {[%clk 0:01:34]}  Nxf6 {[%clk 0:00:33]} 27. Bd4 {[%clk 0:01:34]}  Re6 {[%clk 0:00:30]} 28. Rc1 {[%clk 0:01:30]}  Rd8 {[%clk 0:00:29]} 29. Qf4 {[%clk 0:01:22]}  Nd5 {[%clk 0:00:17]} 30. Qh6 {[%clk 0:01:17]}  Nf6 {[%clk 0:00:17]} 31. Bf2 {[%clk 0:01:16]}  Nd5 {[%clk 0:00:11]} 32. Bb3 {[%clk 0:01:03]}  c3 {[%clk 0:00:08]} 33. Bxd5 {[%clk 0:00:58]}  Qxd5 {[%clk 0:00:08]} 34. Rxc3 {[%clk 0:00:58]}  d2 {[%clk 0:00:08]} 35. Rd1 {[%clk 0:00:57]}  a5 {[%clk 0:00:06]} 36. Rc2 {[%clk 0:00:57]}  Re2 {[%clk 0:00:06]} 37. Qf4 {[%clk 0:00:54]}  Ba6 {[%clk 0:00:05]} 38. Qf6 {[%clk 0:00:52]}  Rde8 {[%clk 0:00:05]} 39. Bd4 {[%clk 0:00:51]}  Re1+ {[%clk 0:00:04]} 40. Kh2 {[%clk 0:00:51]}  Qxd4 {[%clk 0:00:05]} 41. Qxd4 {[%clk 0:00:50]}  Rxd1 {[%clk 0:00:05]} 42. Rxd2 {[%clk 0:00:51]}  Rc1 {[%clk 0:00:04]} 43. Qd7 {[%clk 0:00:50]}  Ree1 {[%clk 0:00:04]} 44. h4 {[%clk 0:00:49]}  Rh1+ {[%clk 0:00:04]} 45. Kg3 {[%clk 0:00:49]}  Bc8 {[%clk 0:00:04]} 46. Qd8+ {[%clk 0:00:49]}  Kh7 {[%clk 0:00:04]} 47. Rd6 {[%clk 0:00:48]}  Be6 {[%clk 0:00:02]} 48. Qf6 {[%clk 0:00:46]}  Rhg1 {[%clk 0:00:02]} 49. Rd8 {[%clk 0:00:45]}  Rxg2+ {[%clk 0:00:01]} 50. Kxg2 {[%clk 0:00:46]}  Rc2+ {[%clk 0:00:02]} 51. Kg3 {[%clk 0:00:46]}  Rc1 {[%clk 0:00:03]} 52. Rh8# {[%clk 0:00:45]} 1-0


[Site "https://www.chess.com"]

[Event "Titled Tuesday Blitz February 28 Late 2023"]
[White "Gokerkan, Cem Kaan"]
[Black "Di Nicolantonio, Lucas"]
[WhiteFideId "6336760"]
[BlackFideId "680460"]
[WhiteElo "2365"]
[BlackElo "2358"]
[Result "1-0"]
[Round "04"]
[TimeControl "180+2"]
[Date "2023.02.28"]
[WhiteClock "0:00:06"]
[BlackClock "0:00:01"]

1. e4 {[%clk 0:03:00]}  g6 {[%clk 0:02:57]} 2. d4 {[%clk 0:03:01]}  Bg7 {[%clk 0:02:58]} 3. Nc3 {[%clk 0:03:02]}  d6 {[%clk 0:02:59]} 4. Be3 {[%clk 0:03:02]}  a6 {[%clk 0:02:59]} 5. Qd2 {[%clk 0:03:03]}  b5 {[%clk 0:03:00]} 6. h4 {[%clk 0:03:04]}  h6 {[%clk 0:02:59]} 7. O-O-O {[%clk 0:03:04]}  Nd7 {[%clk 0:02:59]} 8. Kb1 {[%clk 0:03:04]}  Bb7 {[%clk 0:02:59]} 9. a3 {[%clk 0:03:04]}  Rc8 {[%clk 0:02:57]} 10. d5 {[%clk 0:02:57]}  c5 {[%clk 0:02:51]} 11. dxc6 {[%clk 0:02:56]}  Bxc6 {[%clk 0:02:51]} 12. Nge2 {[%clk 0:02:57]}  Ngf6 {[%clk 0:02:48]} 13. f3 {[%clk 0:02:57]}  Ne5 {[%clk 0:02:42]} 14. Nd4 {[%clk 0:02:55]}  Bb7 {[%clk 0:02:42]} 15. Be2 {[%clk 0:02:34]}  h5 {[%clk 0:02:41]} 16. Rhe1 {[%clk 0:02:05]}  O-O {[%clk 0:02:40]} 17. Bh6 {[%clk 0:02:02]}  Bxh6 {[%clk 0:02:26]} 18. Qxh6 {[%clk 0:02:03]}  Rxc3 {[%clk 0:02:26]} 19. bxc3 {[%clk 0:02:03]}  Qa5 {[%clk 0:02:25]} 20. Nb3 {[%clk 0:01:41]}  Qxa3 {[%clk 0:02:10]} 21. Qc1 {[%clk 0:01:39]}  Qa4 {[%clk 0:02:08]} 22. Rd4 {[%clk 0:01:37]}  Nc4 {[%clk 0:02:09]} 23. Bxc4 {[%clk 0:01:00]}  bxc4 {[%clk 0:02:07]} 24. Nd2 {[%clk 0:01:01]}  d5 {[%clk 0:01:42]} 25. Qb2 {[%clk 0:00:57]}  Rb8 {[%clk 0:01:21]} 26. exd5 {[%clk 0:00:55]}  Qe8 {[%clk 0:01:21]} 27. Rxc4 {[%clk 0:00:31]}  Nxd5 {[%clk 0:01:22]} 28. Kc1 {[%clk 0:00:32]}  a5 {[%clk 0:01:11]} 29. Rc5 {[%clk 0:00:29]}  Ba6 {[%clk 0:00:37]} 30. Qa3 {[%clk 0:00:28]}  Nf4 {[%clk 0:00:28]} 31. Rxa5 {[%clk 0:00:19]}  Ne2+ {[%clk 0:00:26]} 32. Kd1 {[%clk 0:00:19]}  Qc6 {[%clk 0:00:06]} 33. Rxe2 {[%clk 0:00:16]}  Bxe2+ {[%clk 0:00:06]} 34. Kxe2 {[%clk 0:00:17]}  Rd8 {[%clk 0:00:04]} 35. Qc5 {[%clk 0:00:14]}  Qe6+ {[%clk 0:00:03]} 36. Qe3 {[%clk 0:00:13]}  Qd6 {[%clk 0:00:02]} 37. c4 {[%clk 0:00:11]}  Qb4 {[%clk 0:00:02]} 38. Rd5 {[%clk 0:00:11]}  Rc8 {[%clk 0:00:02]} 39. Rd3 {[%clk 0:00:11]}  Qb7 {[%clk 0:00:01]} 40. c5 {[%clk 0:00:10]}  Qc7 {[%clk 0:00:01]} 41. Rc3 {[%clk 0:00:11]}  Qc6 {[%clk 0:00:02]} 42. Qe4 {[%clk 0:00:10]}  Qc7 {[%clk 0:00:02]} 43. c6 {[%clk 0:00:10]}  Qg3 {[%clk 0:00:02]} 44. Kf1 {[%clk 0:00:09]}  e5 {[%clk 0:00:02]} 45. c7 {[%clk 0:00:08]}  Qh2 {[%clk 0:00:03]} 46. Nc4 {[%clk 0:00:05]}  Qh1+ {[%clk 0:00:03]} 47. Kf2 {[%clk 0:00:06]}  Qc1 {[%clk 0:00:03]} 48. Qxe5 {[%clk 0:00:05]}  Kh7 {[%clk 0:00:02]} 49. Nd6 {[%clk 0:00:05]}  Qd2+ {[%clk 0:00:02]} 50. Kg3 {[%clk 0:00:05]}  f6 {[%clk 0:00:01]} 51. Qe7+ {[%clk 0:00:05]}  Kh6 {[%clk 0:00:01]} 52. Nxc8 {[%clk 0:00:06]}  Qxc3 {[%clk 0:00:01]} 53. Nd6 {[%clk 0:00:06]} 1-0


[Site "https://www.chess.com"]

[Event "Titled Tuesday Blitz February 28 Late 2023"]
[White "Cilek, Bora"]
[Black "Holt, Conrad"]
[WhiteFideId "34502165"]
[BlackFideId "2034387"]
[WhiteElo "2108"]
[BlackElo "2592"]
[Result "0-1"]
[Round "04"]
[TimeControl "180+2"]
[Date "2023.02.28"]
[WhiteClock "0:00:12"]
[BlackClock "0:00:15"]

1. Nf3 {[%clk 0:03:00]}  d5 {[%clk 0:02:57]} 2. g3 {[%clk 0:03:00]}  Bg4 {[%clk 0:02:57]} 3. Bg2 {[%clk 0:03:00]}  Nd7 {[%clk 0:02:57]} 4. c4 {[%clk 0:03:00]}  e6 {[%clk 0:02:57]} 5. cxd5 {[%clk 0:02:59]}  exd5 {[%clk 0:02:58]} 6. Qb3 {[%clk 0:02:59]}  Nc5 {[%clk 0:02:56]} 7. Qc2 {[%clk 0:02:59]}  Nf6 {[%clk 0:02:51]} 8. O-O {[%clk 0:02:51]}  Bd6 {[%clk 0:02:48]} 9. d3 {[%clk 0:02:51]}  O-O {[%clk 0:02:46]} 10. a3 {[%clk 0:02:51]}  a5 {[%clk 0:02:35]} 11. b3 {[%clk 0:02:46]}  a4 {[%clk 0:02:31]} 12. Nbd2 {[%clk 0:02:42]}  Re8 {[%clk 0:02:16]} 13. b4 {[%clk 0:02:38]}  Nb3 {[%clk 0:02:15]} 14. Nxb3 {[%clk 0:02:32]}  axb3 {[%clk 0:02:15]} 15. Qxb3 {[%clk 0:02:27]}  Rxe2 {[%clk 0:02:14]} 16. Nd4 {[%clk 0:02:25]}  Re8 {[%clk 0:02:07]} 17. Nb5 {[%clk 0:02:08]}  Bf8 {[%clk 0:01:04]} 18. Bf4 {[%clk 0:02:04]}  Rc8 {[%clk 0:01:00]} 19. Na7 {[%clk 0:02:02]}  Ra8 {[%clk 0:00:58]} 20. Nb5 {[%clk 0:02:02]}  Re7 {[%clk 0:00:56]} 21. h3 {[%clk 0:01:54]}  Bh5 {[%clk 0:00:51]} 22. Rfe1 {[%clk 0:01:42]}  c6 {[%clk 0:00:48]} 23. Nd4 {[%clk 0:01:41]}  Bg6 {[%clk 0:00:42]} 24. g4 {[%clk 0:01:33]}  Qb6 {[%clk 0:00:39]} 25. Qc3 {[%clk 0:01:26]}  Rxe1+ {[%clk 0:00:23]} 26. Rxe1 {[%clk 0:01:25]}  c5 {[%clk 0:00:24]} 27. bxc5 {[%clk 0:01:13]}  Bxc5 {[%clk 0:00:24]} 28. Be3 {[%clk 0:00:29]}  Rxa3 {[%clk 0:00:23]} 29. Qc1 {[%clk 0:00:30]}  h6 {[%clk 0:00:21]} 30. Nc2 {[%clk 0:00:25]}  Bxe3 {[%clk 0:00:21]} 31. Nxe3 {[%clk 0:00:22]}  Rxd3 {[%clk 0:00:21]} 32. Qc8+ {[%clk 0:00:18]}  Kh7 {[%clk 0:00:20]} 33. Nxd5 {[%clk 0:00:18]}  Rxd5 {[%clk 0:00:14]} 34. Bxd5 {[%clk 0:00:17]}  Qa5 {[%clk 0:00:14]} 35. Rd1 {[%clk 0:00:12]}  Nxd5 {[%clk 0:00:14]} 36. Qxb7 {[%clk 0:00:12]}  Nf4 {[%clk 0:00:14]} 37. Qf3 {[%clk 0:00:12]}  Ne6 {[%clk 0:00:14]} 38. Rf1 {[%clk 0:00:12]}  Qg5 {[%clk 0:00:14]} 39. Qg3 {[%clk 0:00:12]}  Nf4 {[%clk 0:00:14]} 40. h4 {[%clk 0:00:12]}  Ne2+ {[%clk 0:00:14]} 41. Kg2 {[%clk 0:00:12]}  Nxg3 {[%clk 0:00:15]} 42. hxg5 {[%clk 0:00:12]}  Nxf1 {[%clk 0:00:15]} 0-1


[Site "https://www.chess.com"]